DEPARTMENT FAMILY,ENTITY,DATE,EXPENSE TYPE,EXPENSE AREA,SUPPLIER,TRANSACTION NUMBER,AMOUNT,,
CAPITAL COMPUTER REPLACEMENT,CAPITAL COMPUTER REPLACEMENT,01/09/2021,PURCHASE OF TANGIBLE ASSET,CAPITAL,SWITCHSHOP LIMITED,0000607874,"116,176.45",,
CAP A&E BUILD,CAP A&E BUILD,15/09/2021,PURCHASE OF TANGIBLE ASSET,CAPITAL,TILBURY DOUGLAS CONSTRUCTION LTD,0000608106,"709,328.60",,
CAPITAL COMPUTER REPLACEMENT,CAPITAL COMPUTER REPLACEMENT,15/09/2021,PURCHASE OF TANGIBLE ASSET,CAPITAL,STONE COMPUTERS LTD,0000608117,"26,427.00",,
CAP WEST WING DEVELOPMENT,CAP WEST WING DEVELOPMENT,22/09/2021,PURCHASE OF TANGIBLE ASSET,CAPITAL,BECTON DICKINSON DISPENSING UK LTD,0000608124,"36,394.75",,
TRUST WIDE,TRUST WIDE,20/09/2021,UNITARY PAYMENT,TRUST WIDE,HOSPITAL CO UP,0000608168,"2,124,929.29",,
NURSE DIRECTOR,NURSE DIRECTOR,13/09/2021,OTHER ESTABLISHMENT EXP,DIRECTOR OF NURSING,ROYAL WOLVERHAMPTON NHS TRUST,0015019736,"448,293.99",,
FINANCE PAYMASTER SERVICES,FINANCE PAYMASTER SERVICES,13/09/2021,SERVICES FROM OTHER NHS BODIES,FINANCE DIRECTOR,ROYAL WOLVERHAMPTON NHS TRUST,0015019805,"-47,329.88",,
MORTUARY,MORTUARY,13/09/2021,SERVICES FROM OTHER NHS BODIES,CLINICAL SUPPORT SERVICES,ROYAL WOLVERHAMPTON PATHOLOGY,0015019855,"758,840.98",,
BLOOD TRANSFUSION SERVICE,BLOOD TRANSFUSION SERVICE,22/09/2021,BLOOD TRANSFUSION SERVICE,CLINICAL SUPPORT SERVICES,NHS BLOOD AND TRANSPLANT,0015019884,"52,287.07",,
ELECTRONICS DEPARTMENT,ELECTRONICS DEPARTMENT,22/09/2021,MED & SURG MTC,EBME EQUIPMENT,NHS SUPPLY CHAIN MAINTENANCE,0020073085,"73,333.26",,
PAEDIATRIC CHILDRENS UNIT,PAEDIATRIC CHILDRENS UNIT,27/09/2021,AGENCY NURSES - TRAINED,CHILDRENS AND FAMILY SERVICES,PEGASUS MEDICAL (1808) LIMITED,0020073670,"28,210.00",,
INCONTINENCE SUPPLIES,INCONTINENCE SUPPLIES,06/09/2021,CONTINENCE PRODUCTS,GENERAL SURGERY CARE GROUP,ABENA UK LTD,0020074123,"45,867.78",,
PAEDIATRIC CHILDRENS UNIT,PAEDIATRIC CHILDRENS UNIT,27/09/2021,AGENCY NURSES - TRAINED,CHILDRENS AND FAMILY SERVICES,PEGASUS MEDICAL (1808) LIMITED,0020074176,"47,110.00",,
PATIENT EXPERIENCE,PATIENT EXPERIENCE,13/09/2021,EXTERNAL CONSULTANCY (NON-PFI),DIRECTOR OF NURSING,"HEALTHCARE COMMUNICATIONS UK LTD,",0020074201,"44,900.88",,
MAINTENANCE - APPLICATIONS,MAINTENANCE - APPLICATIONS,15/09/2021,COMPUTER HARDWARE AND SOFT MTC,INFORMATION DIRECTOR,WELLBEING SOFTWARE LTD,0020074373,"27,792.31",,
AUDIOLOGY DEPARTMENT,AUDIOLOGY DEPARTMENT,13/09/2021,SOFTWARE MAINTENANCE,HEAD AND NECK CARE GROUP,AUDIDATA LIMITED,0020074426,"50,604.00",,
HOSPITAL REDEVELOPMENT,HOSPITAL REDEVELOPMENT,08/09/2021,BUSINESS RATES,ESTATES MANAGEMENT,WALSALL MBC,0020074586,"238,080.00",,
TRUST WIDE,TRUST WIDE,08/09/2021,CREDITORS - TRADE,TRUST WIDE,NHS SUPPLY CHAIN CONSUMABLES,0020074664,"132,506.61",,
STAFF FLOW,STAFF FLOW,09/09/2021,AGENCY OTHER CAREER GRADES,FINANCE DIRECTOR,LIAISON PAYROLL,0020074735,"169,930.02",,
STAFF FLOW,STAFF FLOW,09/09/2021,AGENCY OTHER CAREER GRADES,FINANCE DIRECTOR,LIAISON PAYROLL,0020074736,"71,934.46",,
LAUNDRY SERVICES,LAUNDRY SERVICES,13/09/2021,OTHER GENERAL SUPPLIES & SERV,FACILITIES,BERENDSEN UK LTD,0020074812,"61,552.85",,
MAINTENANCE - INFRASTRUCTURE,MAINTENANCE - INFRASTRUCTURE,15/09/2021,OTHER TELEPHONE RENTAL,INFORMATION DIRECTOR,VIRGIN MEDIA BUSINESS,0020074830,"48,694.50",,
STAFF FLOW,STAFF FLOW,30/09/2021,AGENCY OTHER CAREER GRADES,FINANCE DIRECTOR,LIAISON PAYROLL,0020074971,"181,209.60",,
EPR PROJECT,EPR PROJECT,01/09/2021,EXTERNAL CONSULTANCY (NON-PFI),INFORMATION DIRECTOR,SYSTEM C HEALTHCARE LTD,0050101551,"140,507.39",,
EPR PROJECT,EPR PROJECT,01/09/2021,EXTERNAL CONSULTANCY (NON-PFI),INFORMATION DIRECTOR,SYSTEM C HEALTHCARE LTD,0050101552,"140,507.40",,
EPR PROJECT,EPR PROJECT,01/09/2021,EXTERNAL CONSULTANCY (NON-PFI),INFORMATION DIRECTOR,SYSTEM C HEALTHCARE LTD,0050101553,"140,507.40",,
EPR PROJECT,EPR PROJECT,01/09/2021,EXTERNAL CONSULTANCY (NON-PFI),INFORMATION DIRECTOR,SYSTEM C HEALTHCARE LTD,0050101566,"140,507.40",,
TRUST WIDE,TRUST WIDE,01/09/2021,CREDITORS - TRADE,TRUST WIDE,NHS SUPPLY CHAIN CONSUMABLES,0050101700,"186,339.56",,
PUBLIC HEALTH TRAINEES,PUBLIC HEALTH TRAINEES,13/09/2021,SPECIALISED REGISTRARS,HR & TRAINING,ST HELENS&KNOWSLEY TEACHING HOSPITALS,0050101911,"110,000.00",,
IMAGING DEPARTMENT,IMAGING DEPARTMENT,27/09/2021,LOCUM CONSULTANTS,CLINICAL SUPPORT SERVICES,4 WAYS HEALTHCARE LTD,0050102047,"52,766.64",,
CAPITAL MEDICAL EQUIPMENT,CAPITAL MEDICAL EQUIPMENT,22/09/2021,PURCHASE OF TANGIBLE ASSET,CAPITAL,GETTINGE,0050102048,"635,141.16",,
STAFF FLOW,STAFF FLOW,16/09/2021,AGENCY OTHER CAREER GRADES,FINANCE DIRECTOR,LIAISON PAYROLL,0050102062,"118,728.67",,
STAFF FLOW,STAFF FLOW,16/09/2021,AGENCY OTHER CAREER GRADES,FINANCE DIRECTOR,LIAISON PAYROLL,0050102069,"175,981.49",,
CAP A&E BUILD,CAP A&E BUILD,20/09/2021,PURCHASE OF TANGIBLE ASSET,CAPITAL,TILBURY DOUGLAS CONSTRUCTION LTD,0050102100,"486,122.70",,
TRUST WIDE,TRUST WIDE,22/09/2021,CREDITORS - TRADE,TRUST WIDE,NHS SUPPLY CHAIN CONSUMABLES,0050102169,"165,404.47",,
STAFF FLOW,STAFF FLOW,23/09/2021,AGENCY OTHER CAREER GRADES,FINANCE DIRECTOR,LIAISON PAYROLL,0050102236,"45,714.29",,
STAFF FLOW,STAFF FLOW,23/09/2021,AGENCY OTHER CAREER GRADES,FINANCE DIRECTOR,LIAISON PAYROLL,0050102245,"171,126.74",,
TRUST WIDE,TRUST WIDE,29/09/2021,CREDITORS - TRADE,TRUST WIDE,NHS SUPPLY CHAIN CONSUMABLES,0050102316,"249,348.35",,
STAFF FLOW,STAFF FLOW,30/09/2021,AGENCY OTHER CAREER GRADES,FINANCE DIRECTOR,LIAISON PAYROLL,0050102330,"90,181.83",,
CAPITAL MEDICAL EQUIPMENT,CAPITAL MEDICAL EQUIPMENT,06/09/2021,PURCHASE OF TANGIBLE ASSET,CAPITAL,KARL STORZ ENDOSCOPY (UK) LTD,0060052357,"33,163.20",,
EPR PROJECT,EPR PROJECT,01/09/2021,EXTERNAL CONSULTANCY (NON-PFI),INFORMATION DIRECTOR,SYSTEM C HEALTHCARE LTD,0060052784,"140,507.40",,
COMMUNITY COVID-19,COMMUNITY COVID-19,13/09/2021,OTHER EXPENSES,COMMUNITY,BECTON DICKINSON (CME) UK LTD,0060053330,"35,478.00",,
MAINTENANCE - INFRASTRUCTURE,MAINTENANCE - INFRASTRUCTURE,13/09/2021,COMPUTER HARDWARE AND SOFT MTC,INFORMATION DIRECTOR,DELL BANK INTERNATIONAL D.A.C.,0060053657,"58,066.20",,
STAFF FLOW,STAFF FLOW,02/09/2021,AGENCY OTHER CAREER GRADES,FINANCE DIRECTOR,LIAISON PAYROLL,0060053835,"187,935.45",,
STAFF FLOW,STAFF FLOW,02/09/2021,AGENCY OTHER CAREER GRADES,FINANCE DIRECTOR,LIAISON PAYROLL,0060053836,"53,041.50",,
SECURITY SERVICES,SECURITY SERVICES,13/09/2021,SECURITY CONTRACTS,FACILITIES,APCOA PARKING UK LTD,0060053894,"49,970.89",,
IMAGING DEPARTMENT,IMAGING DEPARTMENT,27/09/2021,MRI SCANS,CLINICAL SUPPORT SERVICES,LISTER INHEALTH,0060053966,"97,255.28",,
IMAGING DEPARTMENT,IMAGING DEPARTMENT,27/09/2021,MRI SCANS,CLINICAL SUPPORT SERVICES,LISTER INHEALTH,0060053967,"54,468.88",,
IMAGING DEPARTMENT,IMAGING DEPARTMENT,27/09/2021,MRI SCANS,CLINICAL SUPPORT SERVICES,LISTER INHEALTH,0060053968,"96,341.99",,
IMAGING DEPARTMENT,IMAGING DEPARTMENT,27/09/2021,MRI SCANS,CLINICAL SUPPORT SERVICES,LISTER INHEALTH,0060053969,"56,783.48",,
EPR PROJECT,EPR PROJECT,22/09/2021,EXTERNAL CONSULTANCY (NON-PFI),INFORMATION DIRECTOR,SYSTEM C HEALTHCARE LTD,0060054017,"140,507.40",,
COVID VACCS PROG - PHARMACY,COVID VACCS PROG - PHARMACY,22/09/2021,MED & SURG EQUIPMENT,LIFESTYLES AND DISCH SUPT,ABM FACILITY SERVICES UK LIMITED,0060054038,"37,770.78",,
TRUST WIDE,TRUST WIDE,22/09/2021,DEBTORS - NON-NHS,TRUST WIDE,THE PLACEMENT GROUP,0060054128,"18,045.05",,
THEATRE PRACTITIONER,THEATRE PRACTITIONER,22/09/2021,PURCHASE OF HCARE FROM NON-NHS,THEATRE CRIT CARE AND ANAES,THE PLACEMENT GROUP,0060054128,"90,225.24",,
CAPITAL COMPUTER REPLACEMENT,CAPITAL COMPUTER REPLACEMENT,27/09/2021,PURCHASE OF TANGIBLE ASSET,CAPITAL,XMA,0060054188,"32,754.06",,
,,,,,,TOTAL,"9,678,274.81",,
